Cogmind - Beta 14 --- EXPLORER MODE // 2024.11.19 @ 05:58:44 Player: Nah Bohdi Result: Destroyed by as-32056 with Assembled Rifle Performance ------------- Evolutions (0) 0 Regions Visited (0) 0 Robots Destroyed (2) 10 Value Destroyed (13) 13 Prototype IDs (0) 0 Alien Tech Used (0) 0 Bonus (0) 0 TOTAL SCORE: 23 Bonus ------- None Cogmind --------- Core Integrity 0/250 Matter 300/300 Energy 74/100 System Corruption 4% Temperature Cool (0) Movement Walking (120) Location -11/Scrapyard Parts ------- > --- POWER (1) -------- (None) > --- PROPULSION (2) --- Aluminum Leg Aluminum Leg > --- UTILITY (2) ------ Small Storage Unit Light Armor Plating > --- WEAPON (2) ------- (None) > --- INVENTORY (8) ---- Tractor Beam Peak State ------------ > --- POWER ------------ Ion Engine > --- PROPULSION ------- Light Treads Light Treads > --- UTILITY ---------- Sensor Array Targeting Computer > --- WEAPON ----------- Light Assault Rifle Light Assault Rifle > --- INVENTORY -------- Light Assault Rifle [Rating: 7] Favorites ----------- Power Ion Engine Engine Ion Engine Propulsion Light Treads Treads Light Treads Leg Aluminum Leg Utility Sensor Array Device Sensor Array Storage Small Storage Unit Processor Targeting Computer Protection Light Armor Plating Weapon Light Assault Rifle Ballistic Gun Light Assault Rifle Special Weapon Mining Laser Build | -11 ------- Run | Yrd Slots Evolved . | . Power . | . Propulsion . | . Utility . | . Weapon . | . Parts Attached 15 | 15 Power 2 | 2 Engine 2 | 2 Core . | . Reactor . | . Propulsion 4 | 4 Treads 2 | 2 Leg 2 | 2 Wheel . | . Hover . | . Flight . | . Utility 4 | 4 Device 1 | 1 Storage 1 | 1 Processor 1 | 1 Hackware . | . Protection 1 | 1 Artifact . | . Weapon 5 | 5 Energy Gun . | . Energy Cannon . | . Ballistic Gun 3 | 3 Ballistic Cannon . | . Launcher . | . Special Weapon 2 | 2 Impact Weapon . | . Slashing Weapon . | . Piercing Weapon . | . Special Melee Weapon . | . Unidentified Prototypes . | . Parts Lost 10 | 10 Power 2 | 2 Propulsion 2 | 2 Utility 2 | 2 Weapon 4 | 4 Highest Loss Streak 8 | 8 To Critical Strikes . | . Average Slot Usage (%) . | . Peak Build Rating 7 | 7 Average Rating 6 | 6 On Entrance . | . Naked Turns . | . Heaviest Build 11 | 11 Greatest Support 40 | 40 Greatest Overweight (x) . | . Average Overweight (x) . | . Largest Inventory Capacity 8 | 8 Average Capacity 5 | 5 Most Carried 5 | 5 Average Carried 3 | 3 Final Capacity 8 | 8 Final Carried 1 | 1 Class Distribution -------------------- None Dominant Class ---------------- None Resources | -11 ----------- Run | Yrd Matter Collected 303 | 303 Remotely . | . Salvage Created 104 | 104 Parts 5 | 5 Haulers Intercepted . | . Recyclers Shooed . | . Parts Field Recycled . | . Retrieved Matter . | . Parts Self-Destructed . | . Prevented . | . Kills | -11 ------- Run | Yrd Combat Hostiles Destroyed 2 | 2 Melee 1 | 1 Guns 1 | 1 Classes Destroyed 3 | 3 Tunneler 1 | 1 Recycler 1 | 1 Assembled 2 | 2 Best Kill Streak 1 | 1 Combat Bots Only 1 | 1 Max Kills in Single Turn 1 | 1 Gunslinging . | . Exploded . | . Melee 1 | 1 Uniques/NPCs Destroyed . | . Combat | -11 -------- Run | Yrd Hostile Shots Fired 90 | 90 Missed 21 | 21 Damage Taken 1104 | 1104 Core 254 | 254 Absorbed by Shields . | . Ignored by Resistances 644 | 644 Core Remaining (%) . | . Volleys Fired 12 | 12 Largest 2 | 2 Hottest 100 | 100 Shots Fired 21 | 21 Gun 18 | 18 Cannon . | . Launcher . | . Special 3 | 3 Kinetic 18 | 18 Thermal 3 | 3 Explosive . | . Electromagnetic . | . Robot Hit Streak 15 | 15 Robot Miss Streak 1 | 1 Penetration Max . | . Secondary Targets . | . Shots Hit Robots 16 | 16 Core Hits 19 | 19 Critical Kills . | . Critical Parts Destroyed . | . Critical Strikes . | . Melee Attacks . | . Impact . | . Slashing . | . Piercing . | . Sneak Attacks . | . Combat Hostiles . | . Follow-up Attacks . | . Damage Inflicted 246 | 246 Guns 126 | 126 Cannons . | . Explosions . | . Melee . | . Ramming 96 | 96 Kinetic 126 | 126 Thermal 24 | 24 Explosive . | . Electromagnetic . | . Impact . | . Slashing . | . Piercing . | . Highest Corruption 4 | 4 Average Corruption 3 | 3 Corruption Purged . | . Corruption Blocked . | . Effects 8 | 8 Matter Fused 1 | 1 Heat Flow Errors 4 | 4 Energy Discharges 1 | 1 Parts Rejected 1 | 1 Data Loss (minor) 1 | 1 Overload Shots . | . Overflow Damage . | . Projectiles . | . Explosions . | . Melee . | . Knockbacks . | . Impact . | . Kinetic . | . Secondary . | . Self-Inflicted Damage 6 | 6 Shots . | . Rammed 1 | 1 Targets Rammed 36 | 36 Kicked 35 | 35 Crushed . | . Highest Temperature 228 | 228 Average Temperature 63 | 63 Received Heat Transfer 40 | 40 Siege Activations . | . Robots Corrupted . | . Combat Hostiles . | . Parts Fried . | . Impact Corruptions . | . Robots Melted . | . Combat Hostiles . | . Parts Melted . | . Heat Transferred 50 | 50 Parts Sabotaged . | . Parts Stolen . | . Parts Stripped . | . Power Chain Reactions . | . Alert | -11 ------- Run | Yrd Peak Influence 35 | 35 Initial . | . Average 3 | 3 Maximum Alert Level . | . Low Security (%) 100 | 100 Level 1 . | . Level 2 . | . Level 3 . | . Level 4 . | . Level 5 . | . High Security . | . Max Security . | . Squads Dispatched . | . Investigation . | . Extermination . | . Reinforcement . | . Assault . | . Garrison . | . Intercept . | . Searches Triggered . | . Construction Impeded . | . Haulers Reinforced . | . Active Scanning Responses . | . Cargo Convoy Interrupts . | . Stealth | -11 --------- Run | Yrd Distress Signals 1 | 1 Communications Jammed . | . Distress Signals . | . Times Spotted 19 | 19 Peak Tracking Total 16 | 16 Tactical Retreats 2 | 2 Traps | -11 ------- Run | Yrd Traps Triggered . | . Indirectly . | . Trap Hack Attempts . | . Triggered . | . Disarmed . | . Reprogrammed . | . Reused . | . Traps Extracted . | . Installed . | . Triggered . | . Machines | -11 ---------- Run | Yrd Machines Disabled . | . Max in Single Turn . | . Machines Repaired . | . Machines Dismantled . | . Machines Sabotaged . | . Overloaded Fab Kills . | . Hacking | -11 --------- Run | Yrd Machines Accessed . | . Terminals . | . Fabricators . | . Repair Stations . | . Recycling Units . | . Scanalyzers . | . Garrison Access . | . Total Hacks . | . Successful . | . Failed . | . Catastrophic . | . Database Lockouts . | . Manual . | . Terminals . | . Fabricators . | . Repair Stations . | . Recycling Units . | . Scanalyzers . | . Garrison Access . | . Terminal Hacks . | . Fabricator Hacks . | . Repair Station Hacks . | . Recycling Unit Hacks . | . Scanalyzer . | . Garrison Access Hacks . | . Unauthorized Hacks . | . Terminals . | . Fabricators . | . Repair Stations . | . Recycling Units . | . Scanalyzers . | . Garrison Access . | . Data Cores Recovered . | . Used . | . Hacking Detections . | . Full Trace Events . | . Feedback Events . | . Feedback Blocked . | . Robot Schematics Acquired . | . Robots Built . | . Authchips . | . Time . | . Total Robot Build Rating . | . Part Schematics Acquired . | . Parts Built . | . Authchips . | . Time . | . Total Part Build Rating . | . Parts Repaired . | . Time . | . Parts Recycled . | . Recycled Matter . | . Retrieved Matter . | . Retrieved Components . | . Parts Scanalyzed . | . Part Schematics Acquired . | . Parts Damaged . | . Bothacking | -11 ------------ Run | Yrd Used RIF Installer . | . Robots Hacked . | . Non-combat . | . Combat . | . Robot Hacks Applied . | . Relay Couplers Released . | . Fabnet Peak Effective % . | . Robots Rewired . | . Allies Hacked . | . Hacks Repelled . | . Allies | -11 -------- Run | Yrd Total Allies . | . Largest Group . | . Highest-Rated Group . | . Highest-Rated Ally . | . Total Orders . | . Ally Attacks . | . Total Damage . | . Kills . | . Allies Corrupted . | . Allies Melted . | . Intel | -11 ------- Run | Yrd Robot Analysis Total . | . Derelict Logs Recovered . | . Drone Launches . | . Drone Recoveries . | . Exploration | -11 ------------- Run | Yrd Turns Passed 3100 | 3100 Spaces Moved 749 | 749 Core 94 | 94 Treads 324 | 324 Legs 331 | 331 Wheels . | . Hover . | . Flight . | . Fastest Speed 50 | 50 Average Speed 128 | 128 Slowest Speed 160 | 160 Overloaded Moves . | . Propulsion Burnouts . | . Robots Hopped . | . Cave-ins Triggered . | . Exploration Rate (%) 70 | 70 Regions Visited . Branch Regions . Pre-discovered Areas . | . Known Exits Taken . | . Unknown Exits Taken . | . Scrap Searched . | . Spaces Dug . | . Terrain Destroyed 1 | 1 Melee . | . Projectile 1 | 1 AOE . | . Terrain Rammed . | . Walls Destroyed . | . Machines Disabled . | . Actions | -11 --------- Run | Yrd Total 2856 | 2856 Wait 2028 | 2028 Move 749 | 749 Hop . | . Pick Up 16 | 16 Fast Attach . | . Attach 15 | 15 Detach . | . Swap . | . Drop . | . Fire 12 | 12 Melee . | . Ram 1 | 1 Kick 35 | 35 Crush . | . Escape Stasis . | . Rewire . | . Trap . | . Miscellaneous . | . Route ------- -11/Scrapyard (discovered 1 exit: *Mat) History --------- Turn | Location | Event 17 | -11/Scrapyard | Identified exit to Materials 17 | -11/Scrapyard | Discovered exit to Materials (range 15) 2492 | -11/Scrapyard | Assembled infested the area 2522 | -11/Scrapyard | Core integrity fell below 50% 2527 | -11/Scrapyard | Core integrity fell below 20% 2557 | -11/Scrapyard | Lost 8 parts (1p2n2u3w) 3101 | -11/Scrapyard | Destroyed by as-32056 with Assembled Rifle Last Messages --------------- 02864_ System corrupted by crushing effect (+1). 02865_ Kicked as-42894 out of the way. 02866_ Kicked as-42894. 02868_ as-42894 destroyed. 02923_ System corrupted: Heat flow error (+154). 02941_ Kicked T-07 Excavator out of the way. 02986_ System corrupted: Heat flow error (+248). 02997_ Kicked T-07 Excavator. 03015_ System corrupted: Matter fused (-9). 03048_ Acquired 9 matter. 03055_ Acquired Mining Laser. 03064_ Acquired 10 matter. 03066_ Acquired Mining Laser. 03070_ System corrupted: Energy discharge (-37). 03071_ Kicked as-32056. 03072_ Kicked as-32056 out of the way. 03072_ Mining Laser destroyed. 03093_ System corrupted: Mining Laser rejected. 03095_ Kicked as-32056 out of the way. 03099_ Kicked as-32056. Map ----- +----------------------------------------------------+ | #???????????????????# #??????????????????? | | ##???????????????????# #??????????????????? | | ##????????????????????# #??????????????????? | | ######?????###?????????????# #??????????????????? | | ??????????## ##????????###?# #??????????????????? | | ?????????## ########## ### #??????????? ?????? | | ?????????# #??????????# ?????? | | ?????????# #??????????# ?????? | | ?????????# ####### ###### #??????????# #????? | | ?????????## ##????# #??????????# #????? | | ??????????# #?????# # #??????????# #????? | | ??????????####?????### # #??????????# #????? | | ?????????????????????####### ########???# ????? | | ????????????????????######## # #???# #????? | | ????????????????????# # # #???# #????? | | ????????????????????# # # ##### ###### | | ????????????????????# | | ????????????????????# # # | | ????????????????????# # # | | ????????????????????## # ####### # | | ?????#######???????######### # # | | ?????# #???????# # # # | | ?????# #???????# | # # | | ###### #???????# % # % | | ## #???????# a%%#%*# ## # # # | | ## #???????## @ # # ## % # | | ## #????????######## ############ # | | ## ##########???# #????#### # | | ## # = #???# * ##?# ?#" # | | ?? # #???# =% # ## # % # | | # ###### ### ##### %% | | ! ! %! * | | *%= %= # # # # # | | # ### ##### * ##### < = #?# ### | | ## #???# ! #??# # #?# #?? | | ##### #???# #??########### #?# #?? | | ????# #???#### ####????????????# ### ### | | ????# #??????# #???????????????# | | ????# #??????# %#???????????????# ### | | ???## ##?????# #???????????????# #?# #### | | ???# #?????# ########????????# # ??? | | ???# #?????# ########## # ?? | | ???# #?????# ########## ? | | ???# #?????# ############ #???###### ? | | ???## ######### #???? ## #?? ## | | ????# # # ## #? ## | | ????# ## # ## ? | | ????# # # ## # ## ? | | ????# # # ## ########? | | ????# # #? ## #############???? | +----------------------------------------------------+ Best States ------------- Heat Dissipation 25 Energy Generation 10 Energy Capacity 250 Matter Stores 300 Matter Capacity 300 Sight Range 16 Robot Scan Range 14 Terrain Scan Density 10 Armor Coverage 150 Resistance: KI 35 Resistance: TH 35 Resistance: EX 35 Resistance: EM 35 Resistance: I 35 Resistance: S 35 Resistance: P 35 Evasion (%) 55 Targeting Accuracy 5 Recoil Reduction 2 Offensive Hacking 20 Item Schematics ----------------- None Robot Schematics ------------------ None Fabricated ------------ Nothing Alien Tech Used ----------------- None Achievements -------------- Curiosity Killed The Cat Challenges ------------ None Game ------ Seed ImprovedAutogunAutobeam Manual? 0 Play Time 00:16:06 Cumulative 21.5 hours Start 2024.11.19 @ 05:50:34 End 2024.11.19 @ 05:58:44 Sessions 0 Manual Loads 0 Difficulty Explorer Special Mode None Game No. 12 Rogue 0 Adventurer 0 Explorer 12 Win Type - Total 0 Types 0/0/0/0/0/0/0/0/0 Lore% 15 Gallery% 23 Achievement% 21 Wizard Run 0 Options --------- Layout 1 ASCII 0 Keyboard 0 Movement Numpad Keybinds 0 Fullscreen 1 Font 24/Smallcaps Map View 50x35 Zoom Use 0% Tactical HUD 1 Map Filters NONE Filters NONE Steam 1 RUN: 32487ed5-77cd-4deb-a165-6b31eab54aeb